Workbook

Sheet PLYN
A1: datum | B1: hod. v roce | C1: odběr plynu [m3] | D1: odběr seřazen [m3] | E1: účinnost kotlů [-] | F1: výhřevnost plynu [MJ/m3] | G1: odběr plynu [MJ] | H1: odběr plynu [MWh] | I1: využité teplo [MWh] | J1: tepelný výkon [kWt] | K1: tepelný výkon seřazený [kWt]
A2: 01.01.2022 00:00 | B2: 1 | C2: 131 | D2: 385 | E2: 0.85 | F2: 33.48 | G2: =C2*F2 -> 4385.88 | H2: =G2/3600 -> 1.2183 | I2: =H2*E2 -> 1.035555 | J2: =I2*1000/1 -> 1035.555 | K2: 3043.425
A3: 01.01.2022 01:00 | B3: =B2+1 -> 2 | C3: 134 | D3: 330 | E3: =E2 -> 0.85 | F3: =F2 -> 33.48 | G3: =C3*F3 -> 4486.32 | H3: =G3/3600 -> 1.2462 | I3: =H3*E3 -> 1.05927 | J3: =I3*1000/1 -> 1059.27 | K3: 2608.65
A4: 01.01.2022 02:00 | B4: 3 | C4: 139 | D4: 328 | E4: =E3 -> 0.85 | F4: =F3 -> 33.48 | G4: =C4*F4 -> 4653.72 | H4: 1.2927 | I4: 1.098795 | J4: 1098.795 | K4: 2592.84
A5: 01.01.2022 03:00 | B5: 4 | C5: 131 | D5: 299 | E5: 0.85 | F5: 33.48 | G5: =C5*F5 -> 4385.88 | H5: 1.2183 | I5: 1.035555 | J5: 1035.555 | K5: 2363.595
A6: 01.01.2022 04:00 | B6: 5 | C6: 130 | D6: 298 | E6: 0.85 | F6: 33.48 | G6: 4352.4 | H6: 1.209 | I6: 1.02765 | J6: 1027.65 | K6: 2355.69
A7: 01.01.2022 05:00 | B7: 6 | C7: 138 | D7: 284 | E7: 0.85 | F7: 33.48 | G7: 4620.24 | H7: 1.2834 | I7: 1.09089 | J7: 1090.89 | K7: 2245.02
A8: 01.01.2022 06:00 | B8: 7 | C8: 134 | D8: 274 | E8: 0.85 | F8: 33.48 | G8: 4486.32 | H8: 1.2462 | I8: 1.05927 | J8: 1059.27 | K8: 2165.97
A9: 01.01.2022 07:00 | B9: 8 | C9: 133 | D9: 266 | E9: 0.85 | F9: 33.48 | G9: 4452.84 | H9: 1.2369 | I9: 1.051365 | J9: 1051.365 | K9: 2102.73
A10: 01.01.2022 08:00 | B10: 9 | C10: 134 | D10: 252 | E10: 0.85 | F10: 33.48 | G10: 4486.32 | H10: 1.2462 | I10: 1.05927 | J10: 1059.27 | K10: 1992.06
A11: 01.01.2022 09:00 | B11: 10 | C11: 137 | D11: 246 | E11: 0.85 | F11: 33.48 | G11: 4586.76 | H11: 1.2741 | I11: 1.082985 | J11: 1082.985 | K11: 1944.63
A12: 01.01.2022 10:00 | B12: 11 | C12: 134 | D12: 240 | E12: 0.85 | F12: 33.48 | G12: 4486.32 | H12: 1.2462 | I12: 1.05927 | J12: 1059.27 | K12: 1897.2
A13: 01.01.2022 11:00 | B13: 12 | C13: 129 | D13: 240 | E13: 0.85 | F13: 33.48 | G13: 4318.92 | H13: 1.1997 | I13: 1.019745 | J13: 1019.745 | K13: 1897.2
A14: 01.01.2022 12:00 | B14: 13 | C14: 130 | D14: 238 | E14: 0.85 | F14: 33.48 | G14: 4352.4 | H14: 1.209 | I14: 1.02765 | J14: 1027.65 | K14: 1881.39
A15: 01.01.2022 13:00 | B15: 14 | C15: 130 | D15: 236 | E15: 0.85 | F15: 33.48 | G15: 4352.4 | H15: 1.209 | I15: 1.02765 | J15: 1027.65 | K15: 1865.58
A16: 01.01.2022 14:00 | B16: 15 | C16: 126 | D16: 232 | E16: 0.85 | F16: 33.48 | G16: 4218.48 | H16: 1.1718 | I16: 0.99603 | J16: 996.03 | K16: 1833.96
A17: 01.01.2022 15:00 | B17: 16 | C17: 129 | D17: 231 | E17: 0.85 | F17: 33.48 | G17: 4318.92 | H17: 1.1997 | I17: 1.019745 | J17: 1019.745 | K17: 1826.055
A18: 01.01.2022 16:00 | B18: 17 | C18: 130 | D18: 231 | E18: 0.85 | F18: 33.48 | G18: 4352.4 | H18: 1.209 | I18: 1.02765 | J18: 1027.65 | K18: 1826.055
A19: 01.01.2022 17:00 | B19: 18 | C19: 133 | D19: 230 | E19: 0.85 | F19: 33.48 | G19: 4452.84 | H19: 1.2369 | I19: 1.051365 | J19: 1051.365 | K19: 1818.15
A20: 01.01.2022 18:00 | B20: 19 | C20: 134 | D20: 230 | E20: 0.85 | F20: 33.48 | G20: 4486.32 | H20: 1.2462 | I20: 1.05927 | J20: 1059.27 | K20: 1818.15
A21: 01.01.2022 19:00 | B21: 20 | C21: 134 | D21: 230 | E21: 0.85 | F21: 33.48 | G21: 4486.32 | H21: 1.2462 | I21: 1.05927 | J21: 1059.27 | K21: 1818.15
A22: 01.01.2022 20:00 | B22: 21 | C22: 134 | D22: 230 | E22: 0.85 | F22: 33.48 | G22: 4486.32 | H22: 1.2462 | I22: 1.05927 | J22: 1059.27 | K22: 1818.15
A23: 01.01.2022 21:00 | B23: 22 | C23: 138 | D23: 227 | E23: 0.85 | F23: 33.48 | G23: 4620.24 | H23: 1.2834 | I23: 1.09089 | J23: 1090.89 | K23: 1794.435
A24: 01.01.2022 22:00 | B24: 23 | C24: 143 | D24: 227 | E24: 0.85 | F24: 33.48 | G24: 4787.64 | H24: 1.3299 | I24: 1.130415 | J24: 1130.415 | K24: 1794.435
A25: 01.01.2022 23:00 | B25: 24 | C25: 143 | D25: 227 | E25: 0.85 | F25: 33.48 | G25: 4787.64 | H25: 1.3299 | I25: 1.130415 | J25: 1130.415 | K25: 1794.435
A26: 02.01.2022 00:00 | B26: 25 | C26: 147 | D26: 227 | E26: 0.85 | F26: 33.48 | G26: 4921.56 | H26: 1.3671 | I26: 1.162035 | J26: 1162.035 | K26: 1794.435
A27: 02.01.2022 01:00 | B27: 26 | C27: 143 | D27: 226 | E27: 0.85 | F27: 33.48 | G27: 4787.64 | H27: 1.3299 | I27: 1.130415 | J27: 1130.415 | K27: 1786.53
A28: 02.01.2022 02:00 | B28: 27 | C28: 147 | D28: 226 | E28: 0.85 | F28: 33.48 | G28: 4921.56 | H28: 1.3671 | I28: 1.162035 | J28: 1162.035 | K28: 1786.53
A29: 02.01.2022 03:00 | B29: 28 | C29: 148 | D29: 226 | E29: 0.85 | F29: 33.48 | G29: 4955.04 | H29: 1.3764 | I29: 1.16994 | J29: 1169.94 | K29: 1786.53
A30: 02.01.2022 04:00 | B30: 29 | C30: 143 | D30: 226 | E30: 0.85 | F30: 33.48 | G30: 4787.64 | H30: 1.3299 | I30: 1.130415 | J30: 1130.415 | K30: 1786.53
A31: 02.01.2022 05:00 | B31: 30 | C31: 146 | D31: 226 | E31: 0.85 | F31: 33.48 | G31: 4888.08 | H31: 1.3578 | I31: 1.15413 | J31: 1154.13 | K31: 1786.53
A32: 02.01.2022 06:00 | B32: 31 | C32: 150 | D32: 225 | E32: 0.85 | F32: 33.48 | G32: 5022 | H32: 1.395 | I32: 1.18575 | J32: 1185.75 | K32: 1778.625
A33: 02.01.2022 07:00 | B33: 32 | C33: 150 | D33: 224 | E33: 0.85 | F33: 33.48 | G33: 5022 | H33: 1.395 | I33: 1.18575 | J33: 1185.75 | K33: 1770.72
A34: 02.01.2022 08:00 | B34: 33 | C34: 146 | D34: 224 | E34: 0.85 | F34: 33.48 | G34: 4888.08 | H34: 1.3578 | I34: 1.15413 | J34: 1154.13 | K34: 1770.72
A35: 02.01.2022 09:00 | B35: 34 | C35: 146 | D35: 224 | E35: 0.85 | F35: 33.48 | G35: 4888.08 | H35: 1.3578 | I35: 1.15413 | J35: 1154.13 | K35: 1770.72
A36: 02.01.2022 10:00 | B36: 35 | C36: 146 | D36: 223 | E36: 0.85 | F36: 33.48 | G36: 4888.08 | H36: 1.3578 | I36: 1.15413 | J36: 1154.13 | K36: 1762.815
A37: 02.01.2022 11:00 | B37: 36 | C37: 138 | D37: 223 | E37: 0.85 | F37: 33.48 | G37: 4620.24 | H37: 1.2834 | I37: 1.09089 | J37: 1090.89 | K37: 1762.815
A38: 02.01.2022 12:00 | B38: 37 | C38: 138 | D38: 223 | E38: 0.85 | F38: 33.48 | G38: 4620.24 | H38: 1.2834 | I38: 1.09089 | J38: 1090.89 | K38: 1762.815
A39: 02.01.2022 13:00 | B39: 38 | C39: 142 | D39: 223 | E39: 0.85 | F39: 33.48 | G39: 4754.16 | H39: 1.3206 | I39: 1.12251 | J39: 1122.51 | K39: 1762.815
A40: 02.01.2022 14:00 | B40: 39 | C40: 139 | D40: 223 | E40: 0.85 | F40: 33.48 | G40: 4653.72 | H40: 1.2927 | I40: 1.098795 | J40: 1098.795 | K40: 1762.815
A41: 02.01.2022 15:00 | B41: 40 | C41: 141 | D41: 223 | E41: 0.85 | F41: 33.48 | G41: 4720.68 | H41: 1.3113 | I41: 1.114605 | J41: 1114.605 | K41: 1762.815
A42: 02.01.2022 16:00 | B42: 41 | C42: 142 | D42: 223 | E42: 0.85 | F42: 33.48 | G42: 4754.16 | H42: 1.3206 | I42: 1.12251 | J42: 1122.51 | K42: 1762.815
A43: 02.01.2022 17:00 | B43: 42 | C43: 150 | D43: 223 | E43: 0.85 | F43: 33.48 | G43: 5022 | H43: 1.395 | I43: 1.18575 | J43: 1185.75 | K43: 1762.815
A44: 02.01.2022 18:00 | B44: 43 | C44: 149 | D44: 223 | E44: 0.85 | F44: 33.48 | G44: 4988.52 | H44: 1.3857 | I44: 1.177845 | J44: 1177.845 | K44: 1762.815
A45: 02.01.2022 19:00 | B45: 44 | C45: 146 | D45: 222 | E45: 0.85 | F45: 33.48 | G45: 4888.08 | H45: 1.3578 | I45: 1.15413 | J45: 1154.13 | K45: 1754.91
A46: 02.01.2022 20:00 | B46: 45 | C46: 146 | D46: 222 | E46: 0.85 | F46: 33.48 | G46: 4888.08 | H46: 1.3578 | I46: 1.15413 | J46: 1154.13 | K46: 1754.91
A47: 02.01.2022 21:00 | B47: 46 | C47: 146 | D47: 222 | E47: 0.85 | F47: 33.48 | G47: 4888.08 | H47: 1.3578 | I47: 1.15413 | J47: 1154.13 | K47: 1754.91
A48: 02.01.2022 22:00 | B48: 47 | C48: 151 | D48: 222 | E48: 0.85 | F48: 33.48 | G48: 5055.48 | H48: 1.4043 | I48: 1.193655 | J48: 1193.655 | K48: 1754.91
A49: 02.01.2022 23:00 | B49: 48 | C49: 146 | D49: 222 | E49: 0.85 | F49: 33.48 | G49: 4888.08 | H49: 1.3578 | I49: 1.15413 | J49: 1154.13 | K49: 1754.91
A50: 03.01.2022 00:00 | B50: 49 | C50: 147 | D50: 222 | E50: 0.85 | F50: 33.48 | G50: 4921.56 | H50: 1.3671 | I50: 1.162035 | J50: 1162.035 | K50: 1754.91
A51: 03.01.2022 01:00 | B51: 50 | C51: 151 | D51: 221 | E51: 0.85 | F51: 33.48 | G51: 5055.48 | H51: 1.4043 | I51: 1.193655 | J51: 1193.655 | K51: 1747.005
A52: 03.01.2022 02:00 | B52: 51 | C52: 147 | D52: 221 | E52: 0.85 | F52: 33.48 | G52: 4921.56 | H52: 1.3671 | I52: 1.162035 | J52: 1162.035 | K52: 1747.005
A53: 03.01.2022 03:00 | B53: 52 | C53: 146 | D53: 220 | E53: 0.85 | F53: 33.48 | G53: 4888.08 | H53: 1.3578 | I53: 1.15413 | J53: 1154.13 | K53: 1739.1
A54: 03.01.2022 04:00 | B54: 53 | C54: 146 | D54: 220 | E54: 0.85 | F54: 33.48 | G54: 4888.08 | H54: 1.3578 | I54: 1.15413 | J54: 1154.13 | K54: 1739.1
A55: 03.01.2022 05:00 | B55: 54 | C55: 149 | D55: 220 | E55: 0.85 | F55: 33.48 | G55: 4988.52 | H55: 1.3857 | I55: 1.177845 | J55: 1177.845 | K55: 1739.1
A56: 03.01.2022 06:00 | B56: 55 | C56: 149 | D56: 219 | E56: 0.85 | F56: 33.48 | G56: 4988.52 | H56: 1.3857 | I56: 1.177845 | J56: 1177.845 | K56: 1731.195
A57: 03.01.2022 07:00 | B57: 56 | C57: 146 | D57: 219 | E57: 0.85 | F57: 33.48 | G57: 4888.08 | H57: 1.3578 | I57: 1.15413 | J57: 1154.13 | K57: 1731.195
A58: 03.01.2022 08:00 | B58: 57 | C58: 146 | D58: 219 | E58: 0.85 | F58: 33.48 | G58: 4888.08 | H58: 1.3578 | I58: 1.15413 | J58: 1154.13 | K58: 1731.195
A59: 03.01.2022 09:00 | B59: 58 | C59: 146 | D59: 219 | E59: 0.85 | F59: 33.48 | G59: 4888.08 | H59: 1.3578 | I59: 1.15413 | J59: 1154.13 | K59: 1731.195
A60: 03.01.2022 10:00 | B60: 59 | C60: 138 | D60: 219 | E60: 0.85 | F60: 33.48 | G60: 4620.24 | H60: 1.2834 | I60: 1.09089 | J60: 1090.89 | K60: 1731.195
A61: 03.01.2022 11:00 | B61: 60 | C61: 138 | D61: 218 | E61: 0.85 | F61: 33.48 | G61: 4620.24 | H61: 1.2834 | I61: 1.09089 | J61: 1090.89 | K61: 1723.29
A62: 03.01.2022 12:00 | B62: 61 | C62: 141 | D62: 218 | E62: 0.85 | F62: 33.48 | G62: 4720.68 | H62: 1.3113 | I62: 1.114605 | J62: 1114.605 | K62: 1723.29
A63: 03.01.2022 13:00 | B63: 62 | C63: 146 | D63: 218 | E63: 0.85 | F63: 33.48 | G63: 4888.08 | H63: 1.3578 | I63: 1.15413 | J63: 1154.13 | K63: 1723.29
A64: 03.01.2022 14:00 | B64: 63 | C64: 142 | D64: 218 | E64: 0.85 | F64: 33.48 | G64: 4754.16 | H64: 1.3206 | I64: 1.12251 | J64: 1122.51 | K64: 1723.29
A65: 03.01.2022 15:00 | B65: 64 | C65: 141 | D65: 218 | E65: 0.85 | F65: 33.48 | G65: 4720.68 | H65: 1.3113 | I65: 1.114605 | J65: 1114.605 | K65: 1723.29
A66: 03.01.2022 16:00 | B66: 65 | C66: 141 | D66: 218 | E66: 0.85 | F66: 33.48 | G66: 4720.68 | H66: =G66/3600 -> 1.3113 | I66: 1.114605 | J66: 1114.605 | K66: 1723.29
A67: 03.01.2022 17:00 | B67: =B66+1 -> 66 | C67: 137 | D67: 217 | E67: 0.85 | F67: 33.48 | G67: =C67*F67 -> 4586.76 | H67: 1.2741 | I67: =H67*E67 -> 1.082985 | J67: =I67*1000/1 -> 1082.985 | K67: 1715.385
A68: 03.01.2022 18:00 | B68: 67 | C68: 141 | D68: 217 | E68: =E67 -> 0.85 | F68: =F67 -> 33.48 | G68: 4720.68 | H68: 1.3113 | I68: 1.114605 | J68: 1114.605 | K68: 1715.385
A69: 03.01.2022 19:00 | B69: 68 | C69: 138 | D69: 217 | E69: 0.85 | F69: 33.48 | G69: 4620.24 | H69: 1.2834 | I69: 1.09089 | J69: 1090.89 | K69: 1715.385
A70: 03.01.2022 20:00 | B70: 69 | C70: 141 | D70: 217 | E70: 0.85 | F70: 33.48 | G70: 4720.68 | H70: 1.3113 | I70: 1.114605 | J70: 1114.605 | K70: 1715.385
A71: 03.01.2022 21:00 | B71: 70 | C71: 142 | D71: 217 | E71: 0.85 | F71: 33.48 | G71: 4754.16 | H71: 1.3206 | I71: 1.12251 | J71: 1122.51 | K71: 1715.385
A72: 03.01.2022 22:00 | B72: 71 | C72: 142 | D72: 217 | E72: 0.85 | F72: 33.48 | G72: 4754.16 | H72: 1.3206 | I72: 1.12251 | J72: 1122.51 | K72: 1715.385
A73: 03.01.2022 23:00 | B73: 72 | C73: 146 | D73: 217 | E73: 0.85 | F73: 33.48 | G73: 4888.08 | H73: 1.3578 | I73: 1.15413 | J73: 1154.13 | K73: 1715.385
A74: 04.01.2022 00:00 | B74: 73 | C74: 147 | D74: 217 | E74: 0.85 | F74: 33.48 | G74: 4921.56 | H74: 1.3671 | I74: 1.162035 | J74: 1162.035 | K74: 1715.385
A75: 04.01.2022 01:00 | B75: 74 | C75: 142 | D75: 217 | E75: 0.85 | F75: 33.48 | G75: 4754.16 | H75: 1.3206 | I75: 1.12251 | J75: 1122.51 | K75: 1715.385
A76: 04.01.2022 02:00 | B76: 75 | C76: 146 | D76: 217 | E76: 0.85 | F76: 33.48 | G76: 4888.08 | H76: 1.3578 | I76: 1.15413 | J76: 1154.13 | K76: 1715.385
A77: 04.01.2022 03:00 | B77: 76 | C77: 138 | D77: 217 | E77: 0.85 | F77: 33.48 | G77: 4620.24 | H77: 1.2834 | I77: 1.09089 | J77: 1090.89 | K77: 1715.385
A78: 04.01.2022 04:00 | B78: 77 | C78: 150 | D78: 216 | E78: 0.85 | F78: 33.48 | G78: 5022 | H78: 1.395 | I78: 1.18575 | J78: 1185.75 | K78: 1707.48
A79: 04.01.2022 05:00 | B79: 78 | C79: 145 | D79: 216 | E79: 0.85 | F79: 33.48 | G79: 4854.6 | H79: 1.3485 | I79: 1.146225 | J79: 1146.225 | K79: 1707.48
A80: 04.01.2022 06:00 | B80: 79 | C80: 145 | D80: 216 | E80: 0.85 | F80: 33.48 | G80: 4854.6 | H80: 1.3485 | I80: 1.146225 | J80: 1146.225 | K80: 1707.48
A81: 04.01.2022 07:00 | B81: 80 | C81: 145 | D81: 216 | E81: 0.85 | F81: 33.48 | G81: 4854.6 | H81: 1.3485 | I81: 1.146225 | J81: 1146.225 | K81: 1707.48
A82: 04.01.2022 08:00 | B82: 81 | C82: 149 | D82: 216 | E82: 0.85 | F82: 33.48 | G82: 4988.52 | H82: 1.3857 | I82: 1.177845 | J82: 1177.845 | K82: 1707.48
A83: 04.01.2022 09:00 | B83: 82 | C83: 146 | D83: 216 | E83: 0.85 | F83: 33.48 | G83: 4888.08 | H83: 1.3578 | I83: 1.15413 | J83: 1154.13 | K83: 1707.48
A84: 04.01.2022 10:00 | B84: 83 | C84: 141 | D84: 216 | E84: 0.85 | F84: 33.48 | G84: 4720.68 | H84: 1.3113 | I84: 1.114605 | J84: 1114.605 | K84: 1707.48
A85: 04.01.2022 11:00 | B85: 84 | C85: 141 | D85: 216 | E85: 0.85 | F85: 33.48 | G85: 4720.68 | H85: 1.3113 | I85: 1.114605 | J85: 1114.605 | K85: 1707.48
A86: 04.01.2022 12:00 | B86: 85 | C86: 150 | D86: 216 | E86: 0.85 | F86: 33.48 | G86: 5022 | H86: 1.395 | I86: 1.18575 | J86: 1185.75 | K86: 1707.48
A87: 04.01.2022 13:00 | B87: 86 | C87: 141 | D87: 216 | E87: 0.85 | F87: 33.48 | G87: 4720.68 | H87: 1.3113 | I87: 1.114605 | J87: 1114.605 | K87: 1707.48
A88: 04.01.2022 14:00 | B88: 87 | C88: 137 | D88: 216 | E88: 0.85 | F88: 33.48 | G88: 4586.76 | H88: 1.2741 | I88: 1.082985 | J88: 1082.985 | K88: 1707.48
A89: 04.01.2022 15:00 | B89: 88 | C89: 149 | D89: 216 | E89: 0.85 | F89: 33.48 | G89: 4988.52 | H89: 1.3857 | I89: 1.177845 | J89: 1177.845 | K89: 1707.48
A90: 04.01.2022 16:00 | B90: 89 | C90: 149 | D90: 216 | E90: 0.85 | F90: 33.48 | G90: 4988.52 | H90: 1.3857 | I90: 1.177845 | J90: 1177.845 | K90: 1707.48
A91: 04.01.2022 17:00 | B91: 90 | C91: 145 | D91: 216 | E91: 0.85 | F91: 33.48 | G91: 4854.6 | H91: 1.3485 | I91: 1.146225 | J91: 1146.225 | K91: 1707.48
A92: 04.01.2022 18:00 | B92: 91 | C92: 145 | D92: 215 | E92: 0.85 | F92: 33.48 | G92: 4854.6 | H92: 1.3485 | I92: 1.146225 | J92: 1146.225 | K92: 1699.575
A93: 04.01.2022 19:00 | B93: 92 | C93: 149 | D93: 215 | E93: 0.85 | F93: 33.48 | G93: 4988.52 | H93: 1.3857 | I93: 1.177845 | J93: 1177.845 | K93: 1699.575
A94: 04.01.2022 20:00 | B94: 93 | C94: 146 | D94: 215 | E94: 0.85 | F94: 33.48 | G94: 4888.08 | H94: 1.3578 | I94: 1.15413 | J94: 1154.13 | K94: 1699.575
A95: 04.01.2022 21:00 | B95: 94 | C95: 146 | D95: 215 | E95: 0.85 | F95: 33.48 | G95: 4888.08 | H95: 1.3578 | I95: 1.15413 | J95: 1154.13 | K95: 1699.575
A96: 04.01.2022 22:00 | B96: 95 | C96: 150 | D96: 215 | E96: 0.85 | F96: 33.48 | G96: 5022 | H96: 1.395 | I96: 1.18575 | J96: 1185.75 | K96: 1699.575
A97: 04.01.2022 23:00 | B97: 96 | C97: 150 | D97: 215 | E97: 0.85 | F97: 33.48 | G97: 5022 | H97: 1.395 | I97: 1.18575 | J97: 1185.75 | K97: 1699.575
A98: 05.01.2022 00:00 | B98: 97 | C98: 150 | D98: 215 | E98: 0.85 | F98: 33.48 | G98: 5022 | H98: 1.395 | I98: 1.18575 | J98: 1185.75 | K98: 1699.575
A99: 05.01.2022 01:00 | B99: 98 | C99: 146 | D99: 214 | E99: 0.85 | F99: 33.48 | G99: 4888.08 | H99: 1.3578 | I99: 1.15413 | J99: 1154.13 | K99: 1691.67
A100: 05.01.2022 02:00 | B100: 99 | C100: 146 | D100: 214 | E100: 0.85 | F100: 33.48 | G100: 4888.08 | H100: 1.3578 | I100: 1.15413 | J100: 1154.13 | K100: 1691.67
A101: 05.01.2022 03:00 | B101: 100 | C101: 150 | D101: 214 | E101: 0.85 | F101: 33.48 | G101: 5022 | H101: 1.395 | I101: 1.18575 | J101: 1185.75 | K101: 1691.67
A102: 05.01.2022 04:00 | B102: 101 | C102: 149 | D102: 214 | E102: 0.85 | F102: 33.48 | G102: 4988.52 | H102: 1.3857 | I102: 1.177845 | J102: 1177.845 | K102: 1691.67
A103: 05.01.2022 05:00 | B103: 102 | C103: 149 | D103: 214 | E103: 0.85 | F103: 33.48 | G103: 4988.52 | H103: 1.3857 | I103: 1.177845 | J103: 1177.845 | K103: 1691.67
A104: 05.01.2022 06:00 | B104: 103 | C104: 145 | D104: 214 | E104: 0.85 | F104: 33.48 | G104: 4854.6 | H104: 1.3485 | I104: 1.146225 | J104: 1146.225 | K104: 1691.67
A105: 05.01.2022 07:00 | B105: 104 | C105: 154 | D105: 214 | E105: 0.85 | F105: 33.48 | G105: 5155.92 | H105: 1.4322 | I105: 1.21737 | J105: 1217.37 | K105: 1691.67
A106: 05.01.2022 08:00 | B106: 105 | C106: 153 | D106: 214 | E106: 0.85 | F106: 33.48 | G106: 5122.44 | H106: 1.4229 | I106: 1.209465 | J106: 1209.465 | K106: 1691.67
A107: 05.01.2022 09:00 | B107: 106 | C107: 154 | D107: 214 | E107: 0.85 | F107: 33.48 | G107: 5155.92 | H107: 1.4322 | I107: 1.21737 | J107: 1217.37 | K107: 1691.67
A108: 05.01.2022 10:00 | B108: 107 | C108: 157 | D108: 214 | E108: 0.85 | F108: 33.48 | G108: 5256.36 | H108: 1.4601 | I108: 1.241085 | J108: 1241.085 | K108: 1691.67
A109: 05.01.2022 11:00 | B109: 108 | C109: 158 | D109: 214 | E109: 0.85 | F109: 33.48 | G109: 5289.84 | H109: 1.4694 | I109: 1.24899 | J109: 1248.99 | K109: 1691.67
A110: 05.01.2022 12:00 | B110: 109 | C110: 154 | D110: 214 | E110: 0.85 | F110: 33.48 | G110: 5155.92 | H110: 1.4322 | I110: 1.21737 | J110: 1217.37 | K110: 1691.67
A111: 05.01.2022 13:00 | B111: 110 | C111: 155 | D111: 214 | E111: 0.85 | F111: 33.48 | G111: 5189.4 | H111: 1.4415 | I111: 1.225275 | J111: 1225.275 | K111: 1691.67
A112: 05.01.2022 14:00 | B112: 111 | C112: 150 | D112: 214 | E112: 0.85 | F112: 33.48 | G112: 5022 | H112: 1.395 | I112: 1.18575 | J112: 1185.75 | K112: 1691.67
A113: 05.01.2022 15:00 | B113: 112 | C113: 158 | D113: 214 | E113: 0.85 | F113: 33.48 | G113: 5289.84 | H113: 1.4694 | I113: 1.24899 | J113: 1248.99 | K113: 1691.67
A114: 05.01.2022 16:00 | B114: 113 | C114: 182 | D114: 214 | E114: 0.85 | F114: 33.48 | G114: 6093.36 | H114: 1.6926 | I114: 1.43871 | J114: 1438.71 | K114: 1691.67
A115: 05.01.2022 17:00 | B115: 114 | C115: 182 | D115: 214 | E115: 0.85 | F115: 33.48 | G115: 6093.36 | H115: 1.6926 | I115: 1.43871 | J115: 1438.71 | K115: 1691.67
A116: 05.01.2022 18:00 | B116: 115 | C116: 163 | D116: 213 | E116: 0.85 | F116: 33.48 | G116: 5457.24 | H116: 1.5159 | I116: 1.288515 | J116: 1288.515 | K116: 1683.765
A117: 05.01.2022 19:00 | B117: 116 | C117: 170 | D117: 213 | E117: 0.85 | F117: 33.48 | G117: 5691.6 | H117: 1.581 | I117: 1.34385 | J117: 1343.85 | K117: 1683.765
A118: 05.01.2022 20:00 | B118: 117 | C118: 162 | D118: 213 | E118: 0.85 | F118: 33.48 | G118: 5423.76 | H118: 1.5066 | I118: 1.28061 | J118: 1280.61 | K118: 1683.765
A119: 05.01.2022 21:00 | B119: 118 | C119: 163 | D119: 213 | E119: 0.85 | F119: 33.48 | G119: 5457.24 | H119: 1.5159 | I119: 1.288515 | J119: 1288.515 | K119: 1683.765
A120: 05.01.2022 22:00 | B120: 119 | C120: 162 | D120: 213 | E120: 0.85 | F120: 33.48 | G120: 5423.76 | H120: 1.5066 | I120: 1.28061 | J120: 1280.61 | K120: 1683.765
A121: 05.01.2022 23:00 | B121: 120 | C121: 166 | D121: 213 | E121: 0.85 | F121: 33.48 | G121: 5557.68 | H121: 1.5438 | I121: 1.31223 | J121: 1312.23 | K121: 1683.765
A122: 06.01.2022 00:00 | B122: 121 | C122: 167 | D122: 213 | E122: 0.85 | F122: 33.48 | G122: 5591.16 | H122: 1.5531 | I122: 1.320135 | J122: 1320.135 | K122: 1683.765
A123: 06.01.2022 01:00 | B123: 122 | C123: 159 | D123: 213 | E123: 0.85 | F123: 33.48 | G123: 5323.32 | H123: 1.4787 | I123: 1.256895 | J123: 1256.895 | K123: 1683.765
A124: 06.01.2022 02:00 | B124: 123 | C124: 163 | D124: 213 | E124: 0.85 | F124: 33.48 | G124: 5457.24 | H124: 1.5159 | I124: 1.288515 | J124: 1288.515 | K124: 1683.765
A125: 06.01.2022 03:00 | B125: 124 | C125: 171 | D125: 213 | E125: 0.85 | F125: 33.48 | G125: 5725.08 | H125: 1.5903 | I125: 1.351755 | J125: 1351.755 | K125: 1683.765
A126: 06.01.2022 04:00 | B126: 125 | C126: 170 | D126: 213 | E126: 0.85 | F126: 33.48 | G126: 5691.6 | H126: 1.581 | I126: 1.34385 | J126: 1343.85 | K126: 1683.765
A127: 06.01.2022 05:00 | B127: 126 | C127: 166 | D127: 213 | E127: 0.85 | F127: 33.48 | G127: 5557.68 | H127: 1.5438 | I127: 1.31223 | J127: 1312.23 | K127: 1683.765
A128: 06.01.2022 06:00 | B128: 127 | C128: 178 | D128: 212 | E128: 0.85 | F128: 33.48 | G128: 5959.44 | H128: 1.6554 | I128: 1.40709 | J128: 1407.09 | K128: 1675.86
A129: 06.01.2022 07:00 | B129: 128 | C129: 171 | D129: 212 | E129: 0.85 | F129: 33.48 | G129: 5725.08 | H129: 1.5903 | I129: 1.351755 | J129: 1351.755 | K129: 1675.86
A130: 06.01.2022 08:00 | B130: 129 | C130: 174 | D130: 212 | E130: 0.85 | F130: 33.48 | G130: 5825.52 | H130: =G130/3600 -> 1.6182 | I130: 1.37547 | J130: 1375.47 | K130: 1675.86
A131: 06.01.2022 09:00 | B131: =B130+1 -> 130 | C131: 175 | D131: 212 | E131: 0.85 | F131: 33.48 | G131: =C131*F131 -> 5859 | H131: 1.6275 | I131: =H131*E131 -> 1.383375 | J131: =I131*1000/1 -> 1383.375 | K131: 1675.86
A132: 06.01.2022 10:00 | B132: 131 | C132: 176 | D132: 212 | E132: =E131 -> 0.85 | F132: =F131 -> 33.48 | G132: 5892.48 | H132: 1.6368 | I132: 1.39128 | J132: 1391.28 | K132: 1675.86
A133: 06.01.2022 11:00 | B133: 132 | C133: 179 | D133: 212 | E133: 0.85 | F133: 33.48 | G133: 5992.92 | H133: 1.6647 | I133: 1.414995 | J133: 1414.995 | K133: 1675.86
A134: 06.01.2022 12:00 | B134: 133 | C134: 188 | D134: 212 | E134: 0.85 | F134: 33.48 | G134: 6294.24 | H134: 1.7484 | I134: 1.48614 | J134: 1486.14 | K134: 1675.86
A135: 06.01.2022 13:00 | B135: 134 | C135: 180 | D135: 212 | E135: 0.85 | F135: 33.48 | G135: 6026.4 | H135: 1.674 | I135: 1.4229 | J135: 1422.9 | K135: 1675.86
A136: 06.01.2022 14:00 | B136: 135 | C136: 184 | D136: 212 | E136: 0.85 | F136: 33.48 | G136: 6160.32 | H136: 1.7112 | I136: 1.45452 | J136: 1454.52 | K136: 1675.86
A137: 06.01.2022 15:00 | B137: 136 | C137: 179 | D137: 212 | E137: 0.85 | F137: 33.48 | G137: 5992.92 | H137: 1.6647 | I137: 1.414995 | J137: 1414.995 | K137: 1675.86
A138: 06.01.2022 16:00 | B138: 137 | C138: 174 | D138: 212 | E138: 0.85 | F138: 33.48 | G138: 5825.52 | H138: 1.6182 | I138: 1.37547 | J138: 1375.47 | K138: 1675.86
A139: 06.01.2022 17:00 | B139: 138 | C139: 179 | D139: 212 | E139: 0.85 | F139: 33.48 | G139: 5992.92 | H139: 1.6647 | I139: 1.414995 | J139: 1414.995 | K139: 1675.86
A140: 06.01.2022 18:00 | B140: 139 | C140: 192 | D140: 212 | E140: 0.85 | F140: 33.48 | G140: 6428.16 | H140: 1.7856 | I140: 1.51776 | J140: 1517.76 | K140: 1675.86
A141: 06.01.2022 19:00 | B141: 140 | C141: 187 | D141: 212 | E141: 0.85 | F141: 33.48 | G141: 6260.76 | H141: 1.7391 | I141: 1.478235 | J141: 1478.235 | K141: 1675.86
A142: 06.01.2022 20:00 | B142: 141 | C142: 180 | D142: 212 | E142: 0.85 | F142: 33.48 | G142: 6026.4 | H142: 1.674 | I142: 1.4229 | J142: 1422.9 | K142: 1675.86
A143: 06.01.2022 21:00 | B143: 142 | C143: 189 | D143: 212 | E143: 0.85 | F143: 33.48 | G143: 6327.72 | H143: 1.7577 | I143: 1.494045 | J143: 1494.045 | K143: 1675.86
A144: 06.01.2022 22:00 | B144: 143 | C144: 188 | D144: 212 | E144: 0.85 | F144: 33.48 | G144: 6294.24 | H144: 1.7484 | I144: 1.48614 | J144: 1486.14 | K144: 1675.86
A145: 06.01.2022 23:00 | B145: 144 | C145: 180 | D145: 211 | E145: 0.85 | F145: 33.48 | G145: 6026.4 | H145: 1.674 | I145: 1.4229 | J145: 1422.9 | K145: 1667.955
A146: 07.01.2022 00:00 | B146: 145 | C146: 188 | D146: 211 | E146: 0.85 | F146: 33.48 | G146: 6294.24 | H146: 1.7484 | I146: 1.48614 | J146: 1486.14 | K146: 1667.955
A147: 07.01.2022 01:00 | B147: 146 | C147: 188 | D147: 211 | E147: 0.85 | F147: 33.48 | G147: 6294.24 | H147: 1.7484 | I147: 1.48614 | J147: 1486.14 | K147: 1667.955
A148: 07.01.2022 02:00 | B148: 147 | C148: 192 | D148: 211 | E148: 0.85 | F148: 33.48 | G148: 6428.16 | H148: 1.7856 | I148: 1.51776 | J148: 1517.76 | K148: 1667.955
A149: 07.01.2022 03:00 | B149: 148 | C149: 184 | D149: 211 | E149: 0.85 | F149: 33.48 | G149: 6160.32 | H149: 1.7112 | I149: 1.45452 | J149: 1454.52 | K149: 1667.955
A150: 07.01.2022 04:00 | B150: 149 | C150: 188 | D150: 211 | E150: 0.85 | F150: 33.48 | G150: 6294.24 | H150: 1.7484 | I150: 1.48614 | J150: 1486.14 | K150: 1667.955
A151: 07.01.2022 05:00 | B151: 150 | C151: 192 | D151: 211 | E151: 0.85 | F151: 33.48 | G151: 6428.16 | H151: 1.7856 | I151: 1.51776 | J151: 1517.76 | K151: 1667.955
A152: 07.01.2022 06:00 | B152: 151 | C152: 192 | D152: 211 | E152: 0.85 | F152: 33.48 | G152: 6428.16 | H152: 1.7856 | I152: 1.51776 | J152: 1517.76 | K152: 1667.955
A153: 07.01.2022 07:00 | B153: 152 | C153: 192 | D153: 211 | E153: 0.85 | F153: 33.48 | G153: 6428.16 | H153: 1.7856 | I153: 1.51776 | J153: 1517.76 | K153: 1667.955
A154: 07.01.2022 08:00 | B154: 153 | C154: 193 | D154: 211 | E154: 0.85 | F154: 33.48 | G154: 6461.64 | H154: 1.7949 | I154: 1.525665 | J154: 1525.665 | K154: 1667.955
A155: 07.01.2022 09:00 | B155: 154 | C155: 200 | D155: 210 | E155: 0.85 | F155: 33.48 | G155: 6696 | H155: 1.86 | I155: 1.581 | J155: 1581 | K155: 1660.05
A156: 07.01.2022 10:00 | B156: 155 | C156: 197 | D156: 210 | E156: 0.85 | F156: 33.48 | G156: 6595.56 | H156: 1.8321 | I156: 1.557285 | J156: 1557.285 | K156: 1660.05
A157: 07.01.2022 11:00 | B157: 156 | C157: 196 | D157: 210 | E157: 0.85 | F157: 33.48 | G157: 6562.08 | H157: 1.8228 | I157: 1.54938 | J157: 1549.38 | K157: 1660.05
A158: 07.01.2022 12:00 | B158: 157 | C158: 213 | D158: 210 | E158: 0.85 | F158: 33.48 | G158: 7131.24 | H158: 1.9809 | I158: 1.683765 | J158: 1683.765 | K158: 1660.05
A159: 07.01.2022 13:00 | B159: 158 | C159: 208 | D159: 210 | E159: 0.85 | F159: 33.48 | G159: 6963.84 | H159: 1.9344 | I159: 1.64424 | J159: 1644.24 | K159: 1660.05
A160: 07.01.2022 14:00 | B160: 159 | C160: 213 | D160: 210 | E160: 0.85 | F160: 33.48 | G160: 7131.24 | H160: 1.9809 | I160: 1.683765 | J160: 1683.765 | K160: 1660.05
A161: 07.01.2022 15:00 | B161: 160 | C161: 212 | D161: 210 | E161: 0.85 | F161: 33.48 | G161: 7097.76 | H161: 1.9716 | I161: 1.67586 | J161: 1675.86 | K161: 1660.05
A162: 07.01.2022 16:00 | B162: 161 | C162: 212 | D162: 210 | E162: 0.85 | F162: 33.48 | G162: 7097.76 | H162: 1.9716 | I162: 1.67586 | J162: 1675.86 | K162: 1660.05
A163: 07.01.2022 17:00 | B163: 162 | C163: 212 | D163: 210 | E163: 0.85 | F163: 33.48 | G163: 7097.76 | H163: 1.9716 | I163: 1.67586 | J163: 1675.86 | K163: 1660.05
A164: 07.01.2022 18:00 | B164: 163 | C164: 208 | D164: 210 | E164: 0.85 | F164: 33.48 | G164: 6963.84 | H164: 1.9344 | I164: 1.64424 | J164: 1644.24 | K164: 1660.05
A165: 07.01.2022 19:00 | B165: 164 | C165: 191 | D165: 210 | E165: 0.85 | F165: 33.48 | G165: 6394.68 | H165: 1.7763 | I165: 1.509855 | J165: 1509.855 | K165: 1660.05
A166: 07.01.2022 20:00 | B166: 165 | C166: 298 | D166: 210 | E166: 0.85 | F166: 33.48 | G166: 9977.04 | H166: 2.7714 | I166: 2.35569 | J166: 2355.69 | K166: 1660.05
A167: 07.01.2022 21:00 | B167: 166 | C167: 238 | D167: 210 | E167: 0.85 | F167: 33.48 | G167: 7968.24 | H167: 2.2134 | I167: 1.88139 | J167: 1881.39 | K167: 1660.05
A168: 07.01.2022 22:00 | B168: 167 | C168: 212 | D168: 210 | E168: 0.85 | F168: 33.48 | G168: 7097.76 | H168: 1.9716 | I168: 1.67586 | J168: 1675.86 | K168: 1660.05
A169: 07.01.2022 23:00 | B169: 168 | C169: 208 | D169: 210 | E169: 0.85 | F169: 33.48 | G169: 6963.84 | H169: 1.9344 | I169: 1.64424 | J169: 1644.24 | K169: 1660.05
A170: 08.01.2022 00:00 | B170: 169 | C170: 217 | D170: 210 | E170: 0.85 | F170: 33.48 | G170: 7265.16 | H170: 2.0181 | I170: 1.715385 | J170: 1715.385 | K170: 1660.05
A171: 08.01.2022 01:00 | B171: 170 | C171: 208 | D171: 210 | E171: 0.85 | F171: 33.48 | G171: 6963.84 | H171: 1.9344 | I171: 1.64424 | J171: 1644.24 | K171: 1660.05
A172: 08.01.2022 02:00 | B172: 171 | C172: 213 | D172: 210 | E172: 0.85 | F172: 33.48 | G172: 7131.24 | H172: 1.9809 | I172: 1.683765 | J172: 1683.765 | K172: 1660.05
A173: 08.01.2022 03:00 | B173: 172 | C173: 212 | D173: 210 | E173: 0.85 | F173: 33.48 | G173: 7097.76 | H173: 1.9716 | I173: 1.67586 | J173: 1675.86 | K173: 1660.05
A174: 08.01.2022 04:00 | B174: 173 | C174: 216 | D174: 210 | E174: 0.85 | F174: 33.48 | G174: 7231.68 | H174: 2.0088 | I174: 1.70748 | J174: 1707.48 | K174: 1660.05
A175: 08.01.2022 05:00 | B175: 174 | C175: 216 | D175: 210 | E175: 0.85 | F175: 33.48 | G175: 7231.68 | H175: 2.0088 | I175: 1.70748 | J175: 1707.48 | K175: 1660.05
A176: 08.01.2022 06:00 | B176: 175 | C176: 211 | D176: 210 | E176: 0.85 | F176: 33.48 | G176: 7064.28 | H176: 1.9623 | I176: 1.667955 | J176: 1667.955 | K176: 1660.05
A177: 08.01.2022 07:00 | B177: 176 | C177: 216 | D177: 210 | E177: 0.85 | F177: 33.48 | G177: 7231.68 | H177: 2.0088 | I177: 1.70748 | J177: 1707.48 | K177: 1660.05
A178: 08.01.2022 08:00 | B178: 177 | C178: 216 | D178: 209 | E178: 0.85 | F178: 33.48 | G178: 7231.68 | H178: 2.0088 | I178: 1.70748 | J178: 1707.48 | K178: 1652.145
A179: 08.01.2022 09:00 | B179: 178 | C179: 208 | D179: 209 | E179: 0.85 | F179: 33.48 | G179: 6963.84 | H179: 1.9344 | I179: 1.64424 | J179: 1644.24 | K179: 1652.145
A180: 08.01.2022 10:00 | B180: 179 | C180: 212 | D180: 209 | E180: 0.85 | F180: 33.48 | G180: 7097.76 | H180: 1.9716 | I180: 1.67586 | J180: 1675.86 | K180: 1652.145
A181: 08.01.2022 11:00 | B181: 180 | C181: 211 | D181: 209 | E181: 0.85 | F181: 33.48 | G181: 7064.28 | H181: 1.9623 | I181: 1.667955 | J181: 1667.955 | K181: 1652.145
A182: 08.01.2022 12:00 | B182: 181 | C182: 204 | D182: 209 | E182: 0.85 | F182: 33.48 | G182: 6829.92 | H182: 1.8972 | I182: 1.61262 | J182: 1612.62 | K182: 1652.145
A183: 08.01.2022 13:00 | B183: 182 | C183: 204 | D183: 209 | E183: 0.85 | F183: 33.48 | G183: 6829.92 | H183: 1.8972 | I183: 1.61262 | J183: 1612.62 | K183: 1652.145
A184: 08.01.2022 14:00 | B184: 183 | C184: 209 | D184: 209 | E184: 0.85 | F184: 33.48 | G184: 6997.32 | H184: 1.9437 | I184: 1.652145 | J184: 1652.145 | K184: 1652.145
A185: 08.01.2022 15:00 | B185: 184 | C185: 208 | D185: 209 | E185: 0.85 | F185: 33.48 | G185: 6963.84 | H185: 1.9344 | I185: 1.64424 | J185: 1644.24 | K185: 1652.145
A186: 08.01.2022 16:00 | B186: 185 | C186: 212 | D186: 209 | E186: 0.85 | F186: 33.48 | G186: 7097.76 | H186: 1.9716 | I186: 1.67586 | J186: 1675.86 | K186: 1652.145
A187: 08.01.2022 17:00 | B187: 186 | C187: 209 | D187: 209 | E187: 0.85 | F187: 33.48 | G187: 6997.32 | H187: 1.9437 | I187: 1.652145 | J187: 1652.145 | K187: 1652.145
A188: 08.01.2022 18:00 | B188: 187 | C188: 217 | D188: 209 | E188: 0.85 | F188: 33.48 | G188: 7265.16 | H188: 2.0181 | I188: 1.715385 | J188: 1715.385 | K188: 1652.145
A189: 08.01.2022 19:00 | B189: 188 | C189: 212 | D189: 209 | E189: 0.85 | F189: 33.48 | G189: 7097.76 | H189: 1.9716 | I189: 1.67586 | J189: 1675.86 | K189: 1652.145
A190: 08.01.2022 20:00 | B190: 189 | C190: 212 | D190: 209 | E190: 0.85 | F190: 33.48 | G190: 7097.76 | H190: 1.9716 | I190: 1.67586 | J190: 1675.86 | K190: 1652.145
A191: 08.01.2022 21:00 | B191: 190 | C191: 217 | D191: 209 | E191: 0.85 | F191: 33.48 | G191: 7265.16 | H191: 2.0181 | I191: 1.715385 | J191: 1715.385 | K191: 1652.145
A192: 08.01.2022 22:00 | B192: 191 | C192: 217 | D192: 209 | E192: 0.85 | F192: 33.48 | G192: 7265.16 | H192: 2.0181 | I192: 1.715385 | J192: 1715.385 | K192: 1652.145
A193: 08.01.2022 23:00 | B193: 192 | C193: 212 | D193: 209 | E193: 0.85 | F193: 33.48 | G193: 7097.76 | H193: 1.9716 | I193: 1.67586 | J193: 1675.86 | K193: 1652.145
A194: 09.01.2022 00:00 | B194: 193 | C194: 217 | D194: 209 | E194: 0.85 | F194: 33.48 | G194: 7265.16 | H194: =G194/3600 -> 2.0181 | I194: 1.715385 | J194: 1715.385 | K194: 1652.145
A195: 09.01.2022 01:00 | B195: =B194+1 -> 194 | C195: 216 | D195: 208 | E195: 0.85 | F195: 33.48 | G195: =C195*F195 -> 7231.68 | H195: 2.0088 | I195: =H195*E195 -> 1.70748 | J195: =I195*1000/1 -> 1707.48 | K195: 1644.24
A196: 09.01.2022 02:00 | B196: 195 | C196: 220 | D196: 208 | E196: =E195 -> 0.85 | F196: =F195 -> 33.48 | G196: 7365.6 | H196: 2.046 | I196: 1.7391 | J196: 1739.1 | K196: 1644.24
A197: 09.01.2022 03:00 | B197: 196 | C197: 216 | D197: 208 | E197: 0.85 | F197: 33.48 | G197: 7231.68 | H197: 2.0088 | I197: 1.70748 | J197: 1707.48 | K197: 1644.24
A198: 09.01.2022 04:00 | B198: 197 | C198: 215 | D198: 208 | E198: 0.85 | F198: 33.48 | G198: 7198.2 | H198: 1.9995 | I198: 1.699575 | J198: 1699.575 | K198: 1644.24
A199: 09.01.2022 05:00 | B199: 198 | C199: 215 | D199: 208 | E199: 0.85 | F199: 33.48 | G199: 7198.2 | H199: 1.9995 | I199: 1.699575 | J199: 1699.575 | K199: 1644.24
A200: 09.01.2022 06:00 | B200: 199 | C200: 216 | D200: 208 | E200: 0.85 | F200: 33.48 | G200: 7231.68 | H200: 2.0088 | I200: 1.70748 | J200: 1707.48 | K200: 1644.24
... 8562 more rows

Sheet EE
B1: hodina | C1: výkon el. [kW] | D1: seřazeno [kW]
A2: 2020-12-31T23:59:59.975 | B2: 1 | C2: 141 | D2: 1788
A3: 2021-01-01T00:14:59.980 | B3: 2 | C3: 133 | D3: 1786
A4: 2021-01-01T00:29:59.985 | B4: 3 | C4: 135 | D4: 1765
A5: 2021-01-01T00:44:59.990 | B5: 4 | C5: 141 | D5: 1748
A6: 2021-01-01T01:00:00 | B6: 5 | C6: 140 | D6: 1746
A7: 2021-01-01T01:15:00 | B7: 6 | C7: 135 | D7: 1741
A8: 2021-01-01T01:30:00 | B8: 7 | C8: 135 | D8: 1734
A9: 2021-01-01T01:45:00 | B9: 8 | C9: 137 | D9: 1728
A10: 2021-01-01T02:00:00 | B10: 9 | C10: 137 | D10: 1726
A11: 2021-01-01T02:15:00 | B11: 10 | C11: 137 | D11: 1725
A12: 2021-01-01T02:30:00 | B12: 11 | C12: 135 | D12: 1724
A13: 2021-01-01T02:45:00 | B13: 12 | C13: 137 | D13: 1722
A14: 2021-01-01T03:00:00 | B14: 13 | C14: 143 | D14: 1721
A15: 2021-01-01T03:15:00 | B15: 14 | C15: 145 | D15: 1720
A16: 2021-01-01T03:30:00 | B16: 15 | C16: 141 | D16: 1720
A17: 2021-01-01T03:45:00 | B17: 16 | C17: 137 | D17: 1711
A18: 2021-01-01T04:00:00 | B18: 17 | C18: 136 | D18: 1710
A19: 2021-01-01T04:15:00 | B19: 18 | C19: 138 | D19: 1705
A20: 2021-01-01T04:30:00 | B20: 19 | C20: 136 | D20: 1699
A21: 2021-01-01T04:45:00 | B21: 20 | C21: 132 | D21: 1696
A22: 2021-01-01T05:00:00 | B22: 21 | C22: 134 | D22: 1696
A23: 2021-01-01T05:15:00 | B23: 22 | C23: 139 | D23: 1696
A24: 2021-01-01T05:30:00 | B24: 23 | C24: 140 | D24: 1694
A25: 2021-01-01T05:45:00 | B25: 24 | C25: 138 | D25: 1694
A26: 2021-01-01T06:00:00 | B26: 25 | C26: 133 | D26: 1692
A27: 2021-01-01T06:15:00 | B27: 26 | C27: 135 | D27: 1690
A28: 2021-01-01T06:30:00 | B28: 27 | C28: 133 | D28: 1690
A29: 2021-01-01T06:45:00 | B29: 28 | C29: 134 | D29: 1690
A30: 2021-01-01T07:00:00 | B30: 29 | C30: 133 | D30: 1688
A31: 2021-01-01T07:15:00 | B31: 30 | C31: 133 | D31: 1688
A32: 2021-01-01T07:30:00 | B32: 31 | C32: 138 | D32: 1687
A33: 2021-01-01T07:45:00 | B33: 32 | C33: 140 | D33: 1686
A34: 2021-01-01T08:00:00 | B34: 33 | C34: 137 | D34: 1686
A35: 2021-01-01T08:15:00 | B35: 34 | C35: 124 | D35: 1685
A36: 2021-01-01T08:30:00 | B36: 35 | C36: 124 | D36: 1684
A37: 2021-01-01T08:45:00 | B37: 36 | C37: 123 | D37: 1684
A38: 2021-01-01T09:00:00 | B38: 37 | C38: 124 | D38: 1684
A39: 2021-01-01T09:15:00 | B39: 38 | C39: 124 | D39: 1679
A40: 2021-01-01T09:30:00 | B40: 39 | C40: 123 | D40: 1677
A41: 2021-01-01T09:45:00 | B41: 40 | C41: 126 | D41: 1676
A42: 2021-01-01T10:00:00 | B42: 41 | C42: 131 | D42: 1675
A43: 2021-01-01T10:15:00 | B43: 42 | C43: 132 | D43: 1675
A44: 2021-01-01T10:30:00 | B44: 43 | C44: 124 | D44: 1674
A45: 2021-01-01T10:45:00 | B45: 44 | C45: 125 | D45: 1673
A46: 2021-01-01T11:00:00 | B46: 45 | C46: 124 | D46: 1673
A47: 2021-01-01T11:15:00 | B47: 46 | C47: 128 | D47: 1673
A48: 2021-01-01T11:30:00 | B48: 47 | C48: 124 | D48: 1672
A49: 2021-01-01T11:45:00 | B49: 48 | C49: 124 | D49: 1671
A50: 2021-01-01T12:00:00 | B50: 49 | C50: 124 | D50: 1671
A51: 2021-01-01T12:15:00 | B51: 50 | C51: 128 | D51: 1671
A52: 2021-01-01T12:30:00 | B52: 51 | C52: 128 | D52: 1671
A53: 2021-01-01T12:45:00 | B53: 52 | C53: 125 | D53: 1670
A54: 2021-01-01T13:00:00 | B54: 53 | C54: 121 | D54: 1670
A55: 2021-01-01T13:15:00 | B55: 54 | C55: 121 | D55: 1669
A56: 2021-01-01T13:30:00 | B56: 55 | C56: 119 | D56: 1668
A57: 2021-01-01T13:45:00 | B57: 56 | C57: 119 | D57: 1668
A58: 2021-01-01T14:00:00 | B58: 57 | C58: 120 | D58: 1667
A59: 2021-01-01T14:15:00 | B59: 58 | C59: 125 | D59: 1667
A60: 2021-01-01T14:30:00 | B60: 59 | C60: 126 | D60: 1666
A61: 2021-01-01T14:45:00 | B61: 60 | C61: 128 | D61: 1666
A62: 2021-01-01T15:00:00 | B62: 61 | C62: 120 | D62: 1665
A63: 2021-01-01T15:15:00 | B63: 62 | C63: 122 | D63: 1665
A64: 2021-01-01T15:30:00 | B64: 63 | C64: 120 | D64: 1665
A65: 2021-01-01T15:45:00 | B65: 64 | C65: 122 | D65: 1663
A66: 2021-01-01T16:00:00 | B66: 65 | C66: 123 | D66: 1662
A67: 2021-01-01T16:15:00 | B67: 66 | C67: 126 | D67: 1662
A68: 2021-01-01T16:30:00 | B68: 67 | C68: 130 | D68: 1661
A69: 2021-01-01T16:45:00 | B69: 68 | C69: 139 | D69: 1661
A70: 2021-01-01T17:00:00 | B70: 69 | C70: 139 | D70: 1660
A71: 2021-01-01T17:15:00 | B71: 70 | C71: 134 | D71: 1660
A72: 2021-01-01T17:30:00 | B72: 71 | C72: 132 | D72: 1659
A73: 2021-01-01T17:45:00 | B73: 72 | C73: 132 | D73: 1659
A74: 2021-01-01T18:00:00 | B74: 73 | C74: 131 | D74: 1659
A75: 2021-01-01T18:15:00 | B75: 74 | C75: 135 | D75: 1658
A76: 2021-01-01T18:30:00 | B76: 75 | C76: 134 | D76: 1658
A77: 2021-01-01T18:45:00 | B77: 76 | C77: 137 | D77: 1658
A78: 2021-01-01T19:00:00 | B78: 77 | C78: 142 | D78: 1657
A79: 2021-01-01T19:15:00 | B79: 78 | C79: 143 | D79: 1657
A80: 2021-01-01T19:30:00 | B80: 79 | C80: 140 | D80: 1657
A81: 2021-01-01T19:45:00 | B81: 80 | C81: 137 | D81: 1656
A82: 2021-01-01T20:00:00 | B82: 81 | C82: 136 | D82: 1656
A83: 2021-01-01T20:15:00 | B83: 82 | C83: 137 | D83: 1655
A84: 2021-01-01T20:30:00 | B84: 83 | C84: 137 | D84: 1655
A85: 2021-01-01T20:45:00 | B85: 84 | C85: 137 | D85: 1654
A86: 2021-01-01T21:00:00 | B86: 85 | C86: 138 | D86: 1654
A87: 2021-01-01T21:15:00 | B87: 86 | C87: 140 | D87: 1654
A88: 2021-01-01T21:30:00 | B88: 87 | C88: 140 | D88: 1653
A89: 2021-01-01T21:45:00 | B89: 88 | C89: 139 | D89: 1652
A90: 2021-01-01T22:00:00 | B90: 89 | C90: 132 | D90: 1652
A91: 2021-01-01T22:15:00 | B91: 90 | C91: 132 | D91: 1651
A92: 2021-01-01T22:30:00 | B92: 91 | C92: 132 | D92: 1651
A93: 2021-01-01T22:45:00 | B93: 92 | C93: 133 | D93: 1650
A94: 2021-01-01T23:00:00 | B94: 93 | C94: 133 | D94: 1650
A95: 2021-01-01T23:15:00 | B95: 94 | C95: 134 | D95: 1650
A96: 2021-01-01T23:30:00 | B96: 95 | C96: 136 | D96: 1650
A97: 2021-01-01T23:45:00 | B97: 96 | C97: 140 | D97: 1650
A98: 2021-01-02 | B98: 97 | C98: 140 | D98: 1650
A99: 2021-01-02T00:15:00 | B99: 98 | C99: 135 | D99: 1650
A100: 2021-01-02T00:30:00 | B100: 99 | C100: 135 | D100: 1649
A101: 2021-01-02T00:45:00 | B101: 100 | C101: 136 | D101: 1649
A102: 2021-01-02T01:00:00 | B102: 101 | C102: 136 | D102: 1648
A103: 2021-01-02T01:15:00 | B103: 102 | C103: 136 | D103: 1648
A104: 2021-01-02T01:30:00 | B104: 103 | C104: 136 | D104: 1647
A105: 2021-01-02T01:45:00 | B105: 104 | C105: 137 | D105: 1647
A106: 2021-01-02T02:00:00 | B106: 105 | C106: 143 | D106: 1647
A107: 2021-01-02T02:15:00 | B107: 106 | C107: 141 | D107: 1646
A108: 2021-01-02T02:30:00 | B108: 107 | C108: 141 | D108: 1646
A109: 2021-01-02T02:45:00 | B109: 108 | C109: 138 | D109: 1645
A110: 2021-01-02T03:00:00 | B110: 109 | C110: 139 | D110: 1645
A111: 2021-01-02T03:15:00 | B111: 110 | C111: 138 | D111: 1645
A112: 2021-01-02T03:30:00 | B112: 111 | C112: 138 | D112: 1645
A113: 2021-01-02T03:45:00 | B113: 112 | C113: 137 | D113: 1644
A114: 2021-01-02T04:00:00 | B114: 113 | C114: 139 | D114: 1644
A115: 2021-01-02T04:15:00 | B115: 114 | C115: 145 | D115: 1643
A116: 2021-01-02T04:30:00 | B116: 115 | C116: 146 | D116: 1643
A117: 2021-01-02T04:45:00 | B117: 116 | C117: 142 | D117: 1643
A118: 2021-01-02T05:00:00 | B118: 117 | C118: 138 | D118: 1643
A119: 2021-01-02T05:15:00 | B119: 118 | C119: 135 | D119: 1643
A120: 2021-01-02T05:30:00 | B120: 119 | C120: 134 | D120: 1642
A121: 2021-01-02T05:45:00 | B121: 120 | C121: 134 | D121: 1641
A122: 2021-01-02T06:00:00 | B122: 121 | C122: 133 | D122: 1641
A123: 2021-01-02T06:15:00 | B123: 122 | C123: 133 | D123: 1641
A124: 2021-01-02T06:30:00 | B124: 123 | C124: 137 | D124: 1641
A125: 2021-01-02T06:45:00 | B125: 124 | C125: 140 | D125: 1640
A126: 2021-01-02T07:00:00 | B126: 125 | C126: 140 | D126: 1640
A127: 2021-01-02T07:15:00 | B127: 126 | C127: 134 | D127: 1640
A128: 2021-01-02T07:30:00 | B128: 127 | C128: 133 | D128: 1640
A129: 2021-01-02T07:45:00 | B129: 128 | C129: 133 | D129: 1640
A130: 2021-01-02T08:00:00 | B130: 129 | C130: 132 | D130: 1639
A131: 2021-01-02T08:15:00 | B131: 130 | C131: 131 | D131: 1638
A132: 2021-01-02T08:30:00 | B132: 131 | C132: 127 | D132: 1638
A133: 2021-01-02T08:45:00 | B133: 132 | C133: 127 | D133: 1638
A134: 2021-01-02T09:00:00 | B134: 133 | C134: 130 | D134: 1638
A135: 2021-01-02T09:15:00 | B135: 134 | C135: 126 | D135: 1637
A136: 2021-01-02T09:30:00 | B136: 135 | C136: 122 | D136: 1637
A137: 2021-01-02T09:45:00 | B137: 136 | C137: 121 | D137: 1637
A138: 2021-01-02T10:00:00 | B138: 137 | C138: 119 | D138: 1637
A139: 2021-01-02T10:15:00 | B139: 138 | C139: 120 | D139: 1637
A140: 2021-01-02T10:30:00 | B140: 139 | C140: 120 | D140: 1636
A141: 2021-01-02T10:45:00 | B141: 140 | C141: 122 | D141: 1636
A142: 2021-01-02T11:00:00 | B142: 141 | C142: 127 | D142: 1635
A143: 2021-01-02T11:15:00 | B143: 142 | C143: 130 | D143: 1635
A144: 2021-01-02T11:30:00 | B144: 143 | C144: 129 | D144: 1634
A145: 2021-01-02T11:45:00 | B145: 144 | C145: 121 | D145: 1634
A146: 2021-01-02T12:00:00 | B146: 145 | C146: 122 | D146: 1634
A147: 2021-01-02T12:15:00 | B147: 146 | C147: 123 | D147: 1633
A148: 2021-01-02T12:30:00 | B148: 147 | C148: 121 | D148: 1633
A149: 2021-01-02T12:45:00 | B149: 148 | C149: 123 | D149: 1633
A150: 2021-01-02T13:00:00 | B150: 149 | C150: 123 | D150: 1633
A151: 2021-01-02T13:15:00 | B151: 150 | C151: 124 | D151: 1633
A152: 2021-01-02T13:30:00 | B152: 151 | C152: 128 | D152: 1633
A153: 2021-01-02T13:45:00 | B153: 152 | C153: 126 | D153: 1632
A154: 2021-01-02T14:00:00 | B154: 153 | C154: 119 | D154: 1632
A155: 2021-01-02T14:15:00 | B155: 154 | C155: 118 | D155: 1632
A156: 2021-01-02T14:30:00 | B156: 155 | C156: 121 | D156: 1632
A157: 2021-01-02T14:45:00 | B157: 156 | C157: 116 | D157: 1632
A158: 2021-01-02T15:00:00 | B158: 157 | C158: 117 | D158: 1631
A159: 2021-01-02T15:15:00 | B159: 158 | C159: 116 | D159: 1631
A160: 2021-01-02T15:30:00 | B160: 159 | C160: 120 | D160: 1631
A161: 2021-01-02T15:45:00 | B161: 160 | C161: 124 | D161: 1630
A162: 2021-01-02T16:00:00 | B162: 161 | C162: 126 | D162: 1630
A163: 2021-01-02T16:15:00 | B163: 162 | C163: 128 | D163: 1630
A164: 2021-01-02T16:30:00 | B164: 163 | C164: 130 | D164: 1629
A165: 2021-01-02T16:45:00 | B165: 164 | C165: 131 | D165: 1629
A166: 2021-01-02T17:00:00 | B166: 165 | C166: 137 | D166: 1628
A167: 2021-01-02T17:15:00 | B167: 166 | C167: 133 | D167: 1628
A168: 2021-01-02T17:30:00 | B168: 167 | C168: 134 | D168: 1627
A169: 2021-01-02T17:45:00 | B169: 168 | C169: 133 | D169: 1627
A170: 2021-01-02T18:00:00 | B170: 169 | C170: 139 | D170: 1627
A171: 2021-01-02T18:15:00 | B171: 170 | C171: 137 | D171: 1627
A172: 2021-01-02T18:30:00 | B172: 171 | C172: 134 | D172: 1627
A173: 2021-01-02T18:45:00 | B173: 172 | C173: 129 | D173: 1627
A174: 2021-01-02T19:00:00 | B174: 173 | C174: 134 | D174: 1627
A175: 2021-01-02T19:15:00 | B175: 174 | C175: 134 | D175: 1626
A176: 2021-01-02T19:30:00 | B176: 175 | C176: 136 | D176: 1626
A177: 2021-01-02T19:45:00 | B177: 176 | C177: 135 | D177: 1626
A178: 2021-01-02T20:00:00 | B178: 177 | C178: 137 | D178: 1626
A179: 2021-01-02T20:15:00 | B179: 178 | C179: 140 | D179: 1626
A180: 2021-01-02T20:30:00 | B180: 179 | C180: 144 | D180: 1626
A181: 2021-01-02T20:45:00 | B181: 180 | C181: 137 | D181: 1626
A182: 2021-01-02T21:00:00 | B182: 181 | C182: 136 | D182: 1625
A183: 2021-01-02T21:15:00 | B183: 182 | C183: 136 | D183: 1624
A184: 2021-01-02T21:30:00 | B184: 183 | C184: 137 | D184: 1624
A185: 2021-01-02T21:45:00 | B185: 184 | C185: 135 | D185: 1624
A186: 2021-01-02T22:00:00 | B186: 185 | C186: 134 | D186: 1624
A187: 2021-01-02T22:15:00 | B187: 186 | C187: 136 | D187: 1624
A188: 2021-01-02T22:30:00 | B188: 187 | C188: 139 | D188: 1624
A189: 2021-01-02T22:45:00 | B189: 188 | C189: 140 | D189: 1624
A190: 2021-01-02T23:00:00 | B190: 189 | C190: 133 | D190: 1623
A191: 2021-01-02T23:15:00 | B191: 190 | C191: 134 | D191: 1623
A192: 2021-01-02T23:30:00 | B192: 191 | C192: 136 | D192: 1623
A193: 2021-01-02T23:45:00 | B193: 192 | C193: 135 | D193: 1623
A194: 2021-01-03 | B194: 193 | C194: 132 | D194: 1622
A195: 2021-01-03T00:15:00 | B195: 194 | C195: 135 | D195: 1622
A196: 2021-01-03T00:30:00 | B196: 195 | C196: 139 | D196: 1621
A197: 2021-01-03T00:45:00 | B197: 196 | C197: 142 | D197: 1620
A198: 2021-01-03T01:00:00 | B198: 197 | C198: 140 | D198: 1620
A199: 2021-01-03T01:15:00 | B199: 198 | C199: 137 | D199: 1620
A200: 2021-01-03T01:30:00 | B200: 199 | C200: 136 | D200: 1619
... 4300 more rows

Sheet EFFICIENCY
C12: tepelna | D12: elektricka | E12: celkem | G12: plyn | H12: teplo | I12: EE
C13: 54.4 | D13: =E13-C13 -> 36.1 | E13: 90.5 | G13: =H13/C13*100 -> 0 | H13: 0 | I13: =D13/100*G13 -> 0
C14: 54 | D14: 36.5 | E14: 90.5 | G14: =H14/C14*100 -> 185.1851852 | H14: 100 | I14: =D14/100*G14 -> 67.59259259
C15: 53.6 | D15: 36.9 | E15: 90.5 | G15: 373.1343284 | H15: 200 | I15: 137.6865672
C16: 53.2 | D16: 37.3 | E16: 90.5 | G16: 563.9097744 | H16: 300 | I16: 210.3383459
C17: 52.8 | D17: 37.7 | E17: 90.5 | G17: 757.5757576 | H17: 400 | I17: 285.6060606
C18: 52.4 | D18: 38.1 | E18: 90.5 | G18: 954.1984733 | H18: 500 | I18: 363.5496183
C19: 52 | D19: 38.5 | E19: 90.5 | G19: 1153.846154 | H19: 600 | I19: 444.2307692
C20: 51.6 | D20: 38.9 | E20: 90.5 | G20: 1356.589147 | H20: 700 | I20: 527.7131783
C21: 51.2 | D21: 39.3 | E21: 90.5 | G21: 1562.5 | H21: 800 | I21: 614.0625
C22: 50.8 | D22: 39.7 | E22: 90.5 | G22: 1771.653543 | H22: 900 | I22: 703.3464567
C23: 50.4 | D23: 40.1 | E23: 90.5 | G23: =H23/C23*100 -> 1984.126984 | H23: 1000 | I23: =D23/100*G23 -> 795.6349206
C24: 50 | D24: 40.5 | E24: 90.5 | G24: 2200 | H24: 1100 | I24: 891
C25: 49.6 | D25: 40.9 | E25: 90.5 | G25: 2419.354839 | H25: 1200 | I25: 989.516129
C26: 49.2 | D26: 41.3 | E26: 90.5 | G26: 2642.276423 | H26: 1300 | I26: 1091.260163
C27: 48.8 | D27: 41.7 | E27: 90.5 | G27: 2868.852459 | H27: 1400 | I27: 1196.311475
C28: 48.4 | D28: 42.1 | E28: 90.5 | G28: 3099.173554 | H28: 1500 | I28: 1304.752066
C29: 48 | D29: 42.5 | E29: 90.5 | G29: 3333.333333 | H29: 1600 | I29: 1416.666667
C30: 47.6 | D30: 42.9 | E30: 90.5 | G30: 3571.428571 | H30: 1700 | I30: 1532.142857
C31: 47.2 | D31: 43.3 | E31: 90.5 | G31: 3813.559322 | H31: 1800 | I31: 1651.271186
C32: 46.8 | D32: 43.7 | E32: 90.5 | G32: 4059.82906 | H32: 1900 | I32: 1774.145299
C33: 46.4 | D33: 44.1 | E33: 90.5 | G33: 4310.344828 | H33: 2000 | I33: 1900.862069
D36: FUNKCE SPOTREBY | P36: KONTROLA
D37: =H12 -> teplo | E37: =G12 -> plyn | P37: teplo | Q37: plyn
D38: 0 | E38: 0 | P38: 0 | Q38: =0.00000001*P38^3 + 0.0001*P38^2 + 1.8404*P38-0.1734 -> -0.1734
D39: 100 | E39: 185.1851852 | P39: 100 | Q39: =0.00000001*P39^3 + 0.0001*P39^2 + 1.8404*P39-0.1734 -> 184.8766
D40: 200 | E40: 373.1343284 | P40: 200 | Q40: 371.9866
D41: 300 | E41: 563.9097744 | P41: 300 | Q41: 561.2166
D42: 400 | E42: 757.5757576 | P42: 400 | Q42: 752.6266
D43: 500 | E43: 954.1984733 | P43: 500 | Q43: 946.2766
D44: 600 | E44: 1153.846154 | P44: 600 | Q44: 1142.2266
D45: 700 | E45: 1356.589147 | P45: 700 | Q45: 1340.5366
D46: 800 | E46: 1562.5 | P46: 800 | Q46: 1541.2666
D47: 900 | E47: 1771.653543 | P47: 900 | Q47: 1744.4766
D48: 1000 | E48: 1984.126984 | P48: 1000 | Q48: 1950.2266
D49: 1100 | E49: 2200 | P49: 1100 | Q49: 2158.5766
D50: 1200 | E50: 2419.354839 | P50: 1200 | Q50: 2369.5866
D51: 1300 | E51: 2642.276423 | P51: 1300 | Q51: 2583.3166
D52: 1400 | E52: 2868.852459 | P52: 1400 | Q52: 2799.8266
D53: 1500 | E53: 3099.173554 | P53: 1500 | Q53: 3019.1766
D54: 1600 | E54: 3333.333333 | P54: 1600 | Q54: 3241.4266
D55: 1700 | E55: 3571.428571 | P55: 1700 | Q55: 3466.6366
D56: 1800 | E56: 3813.559322 | P56: 1800 | Q56: 3694.8666
D57: 1900 | E57: 4059.82906 | P57: 1900 | Q57: 3926.1766
D58: 2000 | E58: =G33 -> 4310.344828 | P58: 2000 | Q58: 4160.6266
D61: FUNKCE VYROBENE EE | P61: KONTROLA
D62: teplo | E62: EE | P62: teplo | Q62: EE
D63: 0 | E63: =I13 -> 0 | P63: 0 | Q63: =1E-83*P63^3+ 0.0001*P63^2 + 0.6656*P63-0.1569 -> -0.1569
D64: 100 | E64: 67.59259259 | P64: 100 | Q64: =1E-83*P64^3+ 0.0001*P64^2 + 0.6656*P64-0.1569 -> 67.4031
D65: 200 | E65: 137.6865672 | P65: 200 | Q65: 136.9631
D66: 300 | E66: 210.3383459 | P66: 300 | Q66: 208.5231
D67: 400 | E67: 285.6060606 | P67: 400 | Q67: 282.0831
D68: 500 | E68: 363.5496183 | P68: 500 | Q68: 357.6431
D69: 600 | E69: 444.2307692 | P69: 600 | Q69: 435.2031
D70: 700 | E70: 527.7131783 | P70: 700 | Q70: 514.7631
D71: 800 | E71: 614.0625 | P71: 800 | Q71: 596.3231
D72: 900 | E72: 703.3464567 | P72: 900 | Q72: 679.8831
D73: 1000 | E73: 795.6349206 | P73: 1000 | Q73: 765.4431
D74: 1100 | E74: 891 | P74: 1100 | Q74: 853.0031
D75: 1200 | E75: 989.516129 | P75: 1200 | Q75: 942.5631
D76: 1300 | E76: 1091.260163 | P76: 1300 | Q76: 1034.1231
D77: 1400 | E77: 1196.311475 | P77: 1400 | Q77: 1127.6831
D78: 1500 | E78: 1304.752066 | P78: 1500 | Q78: 1223.2431
D79: 1600 | E79: 1416.666667 | P79: 1600 | Q79: 1320.8031
D80: 1700 | E80: 1532.142857 | P80: 1700 | Q80: =1E-83*P80^3+ 0.0001*P80^2 + 0.6656*P80-0.1569 -> 1420.3631
D81: 1800 | E81: 1651.271186 | P81: 1800 | Q81: 1521.9231
D82: 1900 | E82: 1774.145299 | P82: 1900 | Q82: 1625.4831
D83: 2000 | E83: 1900.862069 | P83: 2000 | Q83: 1731.0431

Sheet KJ
A1: KGJ
A2: Typ jednotky | B2: Elektrický výkon (kW) | C2: Tepelný výkon (kW) | D2: Elektrická účinnost (%) | E2: Tepelná účinnost (%) | F2: Celková účinnost (%) | G2: Cena (Kč)*1 | H2: Cena dle ČEZ ENERGO (Kč)*1
A3: Micro 30 | B3: 20 | C3: 43.3 | D3: 30 | E3: 64.9 | F3: =D3+E3 -> 94.9 | G3: =C3/$C$11*$G$11 -> 1288690.476 | H3: =-2.7664*C3^2+33523*C3+3000000 -> 4446359.204 | I3: 1 | J3: =G3-H3 -> -3157668.728
A4: Micro 30 | B4: 30 | C4: 58.1 | D4: 32.4 | E4: 62.8 | F4: =D4+E4 -> 95.2 | G4: 1729166.667 | H4: =-2.7664*C4^2+33523*C4+3000000 -> 4938348.012 | I4: 2 | J4: =G4-H4 -> -3209181.346 | K4: 40 | L4: 3000000
A5: Micro 50 | B5: 50 | C5: 88.5 | D5: 34.2 | E5: 60.6 | F5: 94.8 | G5: 2633928.571 | H5: 5945118.364 | I5: 3 | J5: -3311189.792 | K5: 120 | L5: 7000000
A6: Cento 80 | B6: 81 | C6: 119 | D6: 35.2 | E6: 51.7 | F6: 86.9 | G6: 3541666.667 | H6: 6950062.01 | I6: 4 | J6: -3408395.343 | K6: 1000 | L6: 35000000
A7: Cento 100 | B7: 104 | C7: 141 | D7: 37.1 | E7: 50.4 | F7: 87.5 | G7: 4196428.571 | H7: 7671744.202 | I7: 5 | J7: -3475315.63 | K7: 2200 | L7: 62000000
A8: Cento 120 | B8: 125 | C8: 177 | D8: 36.3 | E8: 51.5 | F8: 87.8 | G8: =C8/$C$11*$G$11 -> 5267857.143 | H8: 8846902.454 | I8: 6 | J8: -3579045.312 | K8: 4800 | L8: 100000000
A9: Cento 160 | B9: 164 | C9: 220 | D9: 37.8 | E9: 50.7 | F9: 88.5 | G9: 6547619.048 | H9: 10241166.24 | I9: 7 | J9: -3693547.192
A10: Cento 180 | B10: 184 | C10: 231 | D10: 39.2 | E10: 49.3 | F10: 88.5 | G10: =C10/$C$11*$G$11 -> 6875000 | H10: 10596195.13 | I10: 8 | J10: -3721195.13
A11: Cento 200 | B11: 200 | C11: 252 | D11: 39.2 | E11: 49.4 | F11: 88.6 | G11: 7500000 | H11: 11272118.53 | I11: 9 | J11: -3772118.534
A12: Flexi 260 | B12: 260 | C12: 370 | D12: 38 | E12: 54 | F12: 92 | G12: =C12/$C$11*$G$11 -> 11011904.76 | H12: 15024789.84 | I12: 10 | J12: -4012885.078
A13: Flexi 350 | B13: 354 | C13: 439 | D13: 40.2 | E13: 49.8 | F13: 90 | G13: =C13/$C$11*$G$11 -> 13065476.19 | H13: 17183453.63 | I13: 11 | J13: -4117977.435
A14: Flexi 430 | B14: 430 | C14: 610 | D14: 37 | E14: 52.5 | F14: 89.5 | G14: 18154761.9 | H14: 22419652.56 | I14: 12 | J14: -4264890.655
A15: Flexi 530 | B15: 528 | C15: 671 | D15: 39.3 | E15: 50 | F15: 89.3 | G15: 19970238.1 | H15: 24248386.3 | I15: 13 | J15: -4278148.202
A16: Quanto 600 | B16: 600 | C16: 690 | D16: 42 | E16: 48.4 | F16: 90.4 | G16: 20535714.29 | H16: 24813786.96 | I16: 14 | J16: -4278072.674
A17: Quanto 800 | B17: 800 | C17: 911 | D17: 42.3 | E17: 48.2 | F17: 90.5 | G17: 27113095.24 | H17: 31243559.55 | I17: 15 | J17: -4130464.308
A18: Quanto 1000 | B18: 999 | C18: 1155 | D18: 42 | E18: 48.5 | F18: 90.5 | G18: =C18/$C$11*$G$11 -> 34375000 | H18: 38028618.24 | I18: 16 | J18: -3653618.24
A19: Quanto 1200 | B19: 1200 | C19: 1354 | D19: 42.6 | E19: 48 | F19: 90.6 | G19: =C19/$C$11*$G$11 -> 40297619.05 | H19: 43318456.62 | I19: 17 | J19: -3020837.57
A20: Quanto 1600 | B20: 1560 | C20: 1788 | D20: 42.2 | E20: 48.4 | F20: 90.6 | G20: 53214285.71 | H20: 54095098.12 | I20: 18 | J20: -880812.4041
A21: Quanto 1800 | B21: 1840 | C21: 1996 | D21: 43.6 | E21: 47.3 | F21: 90.9 | G21: 59404761.9 | H21: 58890526.14 | I21: 19 | J21: 514235.7672
A22: Quanto 2000 | B22: 2000 | C22: 2251 | D22: 42.6 | E22: 48 | F22: 90.6 | G22: 66994047.62 | H22: 64442921.43 | I22: 20 | J22: 2551126.185
A23: Quanto 2300 | B23: 2300 | C23: 2451 | D23: 44 | E23: 46.9 | F23: 90.9 | G23: 72946428.57 | H23: 68545998.87 | I23: 21 | J23: 4400429.698
A24: Quanto 3000 | B24: 3203 | C24: 3666 | D24: 42.1 | E24: 48.2 | F24: 90.3 | G24: 109107142.9 | H24: 88716130.28 | I24: 22 | J24: 20391012.58
A25: Quanto 4000 | B25: 4500 | C25: 4799 | D25: 43.7 | E25: 46.6 | F25: 90.3 | G25: 142827381 | H25: 100165575.7 | I25: 23 | J25: 42661805.28

Sheet TC
D3: Elektrický příkon [kWe] | E3: Tepelný výkon [kWt] | F3: COP [-] | G3: Cena [Kč]
D4: 85 | E4: =D4*F4 -> 187 | F4: 2.2 | G4: 3350000
D5: 171 | E5: =D5*F5 -> 376.2 | F5: =F4 -> 2.2 | G5: 5600000
D6: 314 | E6: 690.8 | F6: =F5 -> 2.2 | G6: 9000000
D7: 342 | E7: 752.4 | F7: 2.2 | G7: 11000000
D8: 427 | E8: 939.4 | F8: 2.2 | G8: 15000000
D9: 513 | E9: 1128.6 | F9: 2.2 | G9: 17000000
D10: 598 | E10: 1315.6 | F10: 2.2 | G10: 20000000
D11: 681 | E11: 1498.2 | F11: 2.2 | G11: 22000000
D12: 769 | E12: 1691.8 | F12: 2.2 | G12: 26000000
D13: 819 | E13: 1801.8 | F13: 2.2 | G13: 29000000
D14: 940 | E14: 2068 | F14: 2.2 | G14: 31000000
D15: 1026 | E15: 2257.2 | F15: 2.2 | G15: 33000000
D16: 1136 | E16: 2499.2 | F16: 2.2 | G16: 36000000
D17: 1195 | E17: 2629 | F17: 2.2 | G17: 39000000

Sheet CENA ZP
D3: Rok projektu | E3: Kalendářní rok | F3: Cena zemního plynu SPOT [Kč/MWh] | G3: Cena za distribuci [Kč/MWh] | H3: Poplatek za činnost OTE [Kč/MWh] | I3: Daň ze zemního plynu [Kč/MWh] | J3: Celková cena zemního plynu [Kč/MWh] | K3: 0
D4: 1 | E4: 2023 | F4: 2900 | G4: 43.12 | H4: 2.44 | I4: 30.6 | J4: =F4+G4+H4+I4 -> 2976.16 | K4: =J4/1000 -> 2.97616
D5: 2 | E5: 2024 | F5: 2500 | G5: 43.12 | H5: 2.44 | I5: 30.6 | J5: 2576.16 | K5: =J5/1000 -> 2.57616
D6: 3 | E6: 2025 | F6: 2200 | G6: 43.12 | H6: 2.44 | I6: 30.6 | J6: 2276.16 | K6: 2.27616
D7: 4 | E7: 2026 | F7: 2000 | G7: 43.12 | H7: 2.44 | I7: 30.6 | J7: 2076.16 | K7: 2.07616
D8: 5 | E8: 2027 | F8: 1900 | G8: 43.12 | H8: 2.44 | I8: 30.6 | J8: 1976.16 | K8: 1.97616
D9: 6 | E9: 2028 | F9: 1800 | G9: 43.12 | H9: 2.44 | I9: 30.6 | J9: 1876.16 | K9: 1.87616
D10: 7 | E10: 2029 | F10: 1750 | G10: 43.12 | H10: 2.44 | I10: 30.6 | J10: 1826.16 | K10: 1.82616
D11: 8 | E11: 2030 | F11: 1750 | G11: 43.12 | H11: 2.44 | I11: 30.6 | J11: 1826.16 | K11: 1.82616
D12: 9 | E12: 2031 | F12: 1750 | G12: 43.12 | H12: 2.44 | I12: 30.6 | J12: 1826.16 | K12: 1.82616
D13: 10 | E13: 2032 | F13: 1750 | G13: 43.12 | H13: 2.44 | I13: 30.6 | J13: 1826.16 | K13: 1.82616
D14: 11 | E14: 2033 | F14: 1750 | G14: 43.12 | H14: 2.44 | I14: 30.6 | J14: 1826.16 | K14: 1.82616
D15: 12 | E15: 2034 | F15: 1750 | G15: 43.12 | H15: 2.44 | I15: 30.6 | J15: 1826.16 | K15: 1.82616
D16: 13 | E16: 2035 | F16: 1750 | G16: 43.12 | H16: 2.44 | I16: 30.6 | J16: 1826.16 | K16: 1.82616
D17: 14 | E17: 2036 | F17: 1750 | G17: 43.12 | H17: 2.44 | I17: 30.6 | J17: 1826.16 | K17: 1.82616
D18: 15 | E18: 2037 | F18: 1750 | G18: 43.12 | H18: 2.44 | I18: 30.6 | J18: 1826.16 | K18: 1.82616
D19: 16 | E19: 2038 | F19: 1750 | G19: 43.12 | H19: 2.44 | I19: 30.6 | J19: 1826.16 | K19: 1.82616
D20: 17 | E20: 2039 | F20: 1750 | G20: 43.12 | H20: 2.44 | I20: 30.6 | J20: 1826.16 | K20: 1.82616
D21: 18 | E21: 2040 | F21: 1750 | G21: 43.12 | H21: 2.44 | I21: 30.6 | J21: 1826.16 | K21: 1.82616
D22: 19 | E22: 2041 | F22: 1750 | G22: 43.12 | H22: 2.44 | I22: 30.6 | J22: 1826.16 | K22: 1.82616
D23: 20 | E23: 2042 | F23: 1750 | G23: 43.12 | H23: 2.44 | I23: 30.6 | J23: 1826.16 | K23: 1.82616

Sheet CENA EE
A1: C
E5: Rok projektu | F5: Kalendářní rok | G5: Cena elektrické energie SPOT [Kč/MWh] | H5: Regulovaná část ceny elektrické energie [Kč/MWh] | I5: Poplatek obchodníkovi [Kč/MWh] | J5: Daň z elektřiny [Kč/MWh] | K5: Celková cena elektrické energie [Kč/MWh] | L5: 0
E6: 1 | F6: 2023 | G6: 6000 | H6: 195.65 | I6: 57.7 | J6: 28.3 | K6: =G6+I6+J6+H6 -> 6281.65 | L6: =K6/1000 -> 6.28165
E7: 2 | F7: 2024 | G7: 5400 | H7: =H6 -> 195.65 | I7: 57.7 | J7: 28.3 | K7: =G7+I7+J7+H7 -> 5681.65 | L7: =K7/1000 -> 5.68165
E8: 3 | F8: 2025 | G8: 4900 | H8: =H7 -> 195.65 | I8: 57.7 | J8: 28.3 | K8: 5181.65 | L8: 5.18165
E9: 4 | F9: 2026 | G9: 4450 | H9: 195.65 | I9: 57.7 | J9: 28.3 | K9: 4731.65 | L9: 4.73165
E10: 5 | F10: 2027 | G10: 4100 | H10: 195.65 | I10: 57.7 | J10: 28.3 | K10: 4381.65 | L10: 4.38165
E11: 6 | F11: 2028 | G11: 3900 | H11: 195.65 | I11: 57.7 | J11: 28.3 | K11: 4181.65 | L11: 4.18165
E12: 7 | F12: 2029 | G12: 3800 | H12: 195.65 | I12: 57.7 | J12: 28.3 | K12: 4081.65 | L12: 4.08165
E13: 8 | F13: 2030 | G13: 3800 | H13: 195.65 | I13: 57.7 | J13: 28.3 | K13: 4081.65 | L13: 4.08165
E14: 9 | F14: 2031 | G14: 3800 | H14: 195.65 | I14: 57.7 | J14: 28.3 | K14: 4081.65 | L14: 4.08165
E15: 10 | F15: 2032 | G15: 3800 | H15: 195.65 | I15: 57.7 | J15: 28.3 | K15: 4081.65 | L15: 4.08165
E16: 11 | F16: 2033 | G16: 3800 | H16: 195.65 | I16: 57.7 | J16: 28.3 | K16: 4081.65 | L16: 4.08165
E17: 12 | F17: 2034 | G17: 3800 | H17: 195.65 | I17: 57.7 | J17: 28.3 | K17: 4081.65 | L17: 4.08165
E18: 13 | F18: 2035 | G18: 3800 | H18: 195.65 | I18: 57.7 | J18: 28.3 | K18: 4081.65 | L18: 4.08165
E19: 14 | F19: 2036 | G19: 3800 | H19: 195.65 | I19: 57.7 | J19: 28.3 | K19: 4081.65 | L19: 4.08165
E20: 15 | F20: 2037 | G20: 3800 | H20: 195.65 | I20: 57.7 | J20: 28.3 | K20: 4081.65 | L20: 4.08165
E21: 16 | F21: 2038 | G21: 3800 | H21: 195.65 | I21: 57.7 | J21: 28.3 | K21: 4081.65 | L21: 4.08165
E22: 17 | F22: 2039 | G22: 3800 | H22: 195.65 | I22: 57.7 | J22: 28.3 | K22: 4081.65 | L22: 4.08165
E23: 18 | F23: 2040 | G23: 3800 | H23: 195.65 | I23: 57.7 | J23: 28.3 | K23: 4081.65 | L23: 4.08165
E24: 19 | F24: 2041 | G24: 3800 | H24: 195.65 | I24: 57.7 | J24: 28.3 | K24: 4081.65 | L24: 4.08165
E25: 20 | F25: 2042 | G25: 3800 | H25: 195.65 | I25: 57.7 | J25: 28.3 | K25: 4081.65 | L25: 4.08165

Sheet DISCOUNT
B10: re | C10: =G10+G11*G12 -> 0.098427 | F10: rf | G10: 0.035
B11: E | C11: 0.85 | F11: ERP | G11: 0.0697 | H11: 0.02
B12: D | C12: =1-C11 -> 0.15 | F12: Bl | G12: 0.91 | H12: =G13*(1+(C12/C11)*(1-C14)) -> 0.7772
B13: rd | C13: 0.0634 | F13: Bu | G13: 0.68
B14: t | C14: 0.19
B17: WACC | C17: = | D17: =C10*C11+C13*(1-C14)*C12 -> 0.09136605

Sheet RESULTS
C6: Varianta | D6: 15 | E6: - | H6: Celková počáteční investice | I6: 31243560 | J6: Kč
C7: Tepelný výkon | D7: 911 | E7: kWt | H7: Průměrné roční úspory na teple | I7: 10189400 | J7: =J6 -> Kč
C8: Elektrický výkon | D8: 800 | E8: kWe | H8: Průměrné roční úspory na nákupu elektřiny | I8: 12262100 | J8: =J7 -> Kč
C9: Doba využití v roce | D9: 4835 | E9: h | H9: Průměrné roční výnosy z prodeje elektřiny do sítě | I9: 379104 | J9: Kč
C10: Celkové množství vyrobeného tepla v roce | D10: 4405 | E10: MWh | H10: Roční výnosy ze zeleného bonusu | I10: 2982250 | J10: Kč
C11: Procento nahrazeného tepla | D11: 74 | E11: % | H11: Průměrné roční provozní náklady | I11: 21322600 | J11: Kč
C12: Celkové množství vyrobené elektřiny v roce | D12: 3179 | E12: MWh | H12: Čistá současná hodnota projektu | I12: 15763000 | J12: Kč
C13: Celkové množství využité elektřiny v roce | D13: 2800 | E13: MWh
C14: Procento využité elektřiny | D14: =D13/D12*100 -> 88.07801195 | E14: %
C15: Množství dodané elektřiny do sítě | D15: 379 | E15: MWh
